Cogmind - Beta 14 @@@ ROGUE MODE // 2024.10.19 @ 19:01:23 Player: Proroxy Result: Destroyed by Y-45 Defender with Heavy Assault Rifle Performance ------------- Evolutions (1) 500 Regions Visited (3) 600 Robots Destroyed (19) 95 Value Destroyed (366) 366 Prototype IDs (0) 0 Alien Tech Used (0) 0 Bonus (0) 0 TOTAL SCORE: 1561 Bonus ------- None Cogmind --------- Core Integrity 0/400 Matter 296/300 Energy 100/100 System Corruption 2% Temperature Warm (151) Movement Walking (120) Location -9/Materials Parts ------- > --- POWER (2) -------- (None) > --- PROPULSION (2) --- Aluminum Leg Aluminum Leg > --- UTILITY (3) ------ Visual Processing Unit Utility Shielding (fused) > --- WEAPON (2) ------- Light Assault Rifle > --- INVENTORY (5) ---- Core Shielding Propulsion Shielding Utility Shielding Utility Shielding Peak State ------------ > --- POWER ------------ Light Ion Engine Improved Ion Engine > --- PROPULSION ------- Aluminum Leg Aluminum Leg > --- UTILITY ---------- Visual Processing Unit Utility Shielding Field Recycling Unit > --- WEAPON ----------- Beam Rifle Particle Cannon > --- INVENTORY -------- Light Ion Engine Wheel Utility Shielding Utility Shielding [Rating: 14] Favorites ----------- Power Light Ion Engine Engine Light Ion Engine Propulsion Aluminum Leg Leg Aluminum Leg Wheel Wheel Utility Utility Shielding Device Field Recycling Unit Storage Small Storage Unit Processor Visual Processing Unit Protection Utility Shielding Weapon Light Assault Rifle Energy Gun Beam Rifle Energy Cannon Particle Cannon Ballistic Gun Light Assault Rifle Launcher Rocket Launcher Special Weapon Plasma Cutter Build | -11 -10 -10 -9 ------- Run | Yrd Mat Min Mat Slots Evolved 2 | . . . 2 Power 1 | . . . 1 Propulsion . | . . . . Utility 1 | . . . 1 Weapon . | . . . . Parts Attached 31 | 6 5 5 15 Power 6 | 1 2 1 2 Engine 6 | 1 2 1 2 Core . | . . . . Reactor . | . . . . Propulsion 8 | 2 . 3 3 Treads . | . . . . Leg 6 | . . 3 3 Wheel 2 | 2 . . . Hover . | . . . . Flight . | . . . . Utility 7 | 1 1 . 5 Device 2 | . . . 2 Storage 1 | 1 . . . Processor 1 | . . . 1 Hackware . | . . . . Protection 3 | . 1 . 2 Artifact . | . . . . Weapon 10 | 2 2 1 5 Energy Gun 2 | . 1 . 1 Energy Cannon 1 | . . . 1 Ballistic Gun 4 | 2 . 1 1 Ballistic Cannon . | . . . . Launcher 2 | . . . 2 Special Weapon 1 | . 1 . . Impact Weapon . | . . . . Slashing Weapon . | . . . . Piercing Weapon . | . . . . Special Melee Weapon . | . . . . Unidentified Prototypes . | . . . . Parts Lost 8 | . . 2 6 Power 2 | . . . 2 Propulsion 1 | . . 1 . Utility 1 | . . . 1 Weapon 4 | . . 1 3 Highest Loss Streak 5 | . . 2 5 To Critical Strikes . | . . . . Average Slot Usage (%) 97 | . 97 95 97 Engine 18 | . 14 14 21 Leg 15 | . . 21 21 Wheel 8 | . 28 3 . Device 1 | . . . 2 Storage 7 | . 14 14 2 Processor 4 | . . . 7 Protection 17 | . 12 14 20 Energy Gun 5 | . 3 . 8 Energy Cannon 4 | . . . 7 Ballistic Gun 12 | . 23 25 4 Peak Build Rating 14 | 6 10 10 14 Average Rating 9 | 3 7 8 11 On Entrance 6 | . 6 10 8 Naked Turns . | . . . . Heaviest Build 27 | 13 16 15 27 Greatest Support 26 | 26 26 26 20 Greatest Overweight (x) 1 | . . 1 1 Average Overweight (x) . | . . . . Largest Inventory Capacity 8 | 8 8 8 8 Average Capacity 6 | 6 8 8 5 Most Carried 8 | 6 8 8 6 Average Carried 5 | 3 6 7 4 Final Capacity 8 | 8 8 8 5 Final Carried 8 | 4 8 7 4 Class Distribution -------------------- 100% | Mutant Dominant Class ---------------- Mutant | -10/Materials Mutant | -10/Mines Mutant | -9/Materials Resources | -11 -10 -10 -9 ----------- Run | Yrd Mat Min Mat Matter Collected 524 | 242 . 132 150 Remotely . | . . . . Salvage Created 471 | . . 144 327 Parts 40 | . . 14 26 Haulers Intercepted . | . . . . Recyclers Shooed . | . . . . Parts Field Recycled 12 | . . . 12 Retrieved Matter 45 | . . . 45 Parts Self-Destructed . | . . . . Prevented . | . . . . Kills | -11 -10 -10 -9 ------- Run | Yrd Mat Min Mat Combat Hostiles Destroyed 17 | . . 7 10 Guns 11 | . . 7 4 Cannons 4 | . . . 4 AOE 2 | . . . 2 Classes Destroyed 5 | . . 2 3 Recycler 1 | . . . 1 Watcher 1 | . . . 1 Swarmer 12 | . . 6 6 Grunt 4 | . . 1 3 Sentry 1 | . . . 1 Best Kill Streak 5 | . . 3 5 Combat Bots Only 4 | . . 3 4 Max Kills in Single Turn 2 | . . 2 2 Gunslinging 1 | . . 1 . Exploded 2 | . . . 2 Melee . | . . . . Uniques/NPCs Destroyed . | . . . . Combat | -11 -10 -10 -9 -------- Run | Yrd Mat Min Mat Hostile Shots Fired 193 | . . 66 127 Missed 52 | . . 20 32 Damage Taken 1558 | . . 386 1172 Core 538 | . . 124 414 Absorbed by Shields . | . . . . Redirected to Shielding 69 | . . 6 63 Regen/Repaired (Parts) 56 | . . . 56 Core Remaining (%) 75 | 100 . 50 . Volleys Fired 48 | . 2 20 26 Largest 2 | . 2 2 2 Hottest 124 | . 40 40 124 Shots Fired 80 | . 4 33 43 Gun 64 | . 4 30 30 Cannon 11 | . . . 11 Launcher 2 | . . . 2 Special 3 | . . 3 . Kinetic 56 | . 4 30 22 Thermal 22 | . . 3 19 Explosive 2 | . . . 2 Electromagnetic . | . . . . Robot Hit Streak 14 | . . 14 8 Robot Miss Streak 3 | . . 3 2 Penetration Max . | . . . . Secondary Targets 1 | . . 1 . Max Gunslinging Chain 1 | . . 1 . Shots Hit Robots 45 | . . 20 25 Core Hits 27 | . . 13 14 Critical Kills . | . . . . Critical Parts Destroyed . | . . . . Critical Strikes 1 | . . . 1 Burn 1 | . . . 1 Melee Attacks . | . . . . Impact . | . . . . Slashing . | . . . . Piercing . | . . . . Sneak Attacks . | . . . . Combat Hostiles . | . . . . Follow-up Attacks . | . . . . Damage Inflicted 691 | . . 173 518 Guns 379 | . . 173 206 Cannons 146 | . . . 146 Explosions 166 | . . . 166 Melee . | . . . . Ramming . | . . . . Kinetic 291 | . . 173 118 Thermal 234 | . . . 234 Explosive 166 | . . . 166 Electromagnetic . | . . . . Impact . | . . . . Slashing . | . . . . Piercing . | . . . . Highest Corruption 2 | . . . 2 Average Corruption 1 | . . . 1 Corruption Purged . | . . . . Corruption Blocked . | . . . . Effects 3 | . . . 3 Energy Discharges 1 | . . . 1 Parts Fused 1 | . . . 1 Data Loss (minor) 1 | . . . 1 Overload Shots . | . . . . Overflow Damage . | . . . . Projectiles . | . . . . Explosions . | . . . . Melee . | . . . . Knockbacks . | . . . . Impact . | . . . . Kinetic . | . . . . Secondary . | . . . . Self-Inflicted Damage 52 | . . . 52 Shots 2 | . . . 2 Rammed . | . . . . Targets Rammed . | . . . . Kicked . | . . . . Crushed . | . . . . Highest Temperature 417 | . . 32 417 Average Temperature 122 | . . 8 162 Received Heat Transfer 405 | . . 54 351 Effects 4 | . . . 4 Shutdowns 2 | . . . 2 Energy Bleed 1 | . . . 1 Interference 1 | . . . 1 Siege Activations . | . . . . Robots Corrupted . | . . . . Combat Hostiles . | . . . . Parts Fried . | . . . . Impact Corruptions . | . . . . Robots Melted . | . . . . Combat Hostiles . | . . . . Parts Melted . | . . . . Heat Transferred 555 | . . . 555 Parts Sabotaged . | . . . . Parts Stolen . | . . . . Parts Stripped . | . . . . Power Chain Reactions . | . . . . Alert | -11 -10 -10 -9 ------- Run | Yrd Mat Min Mat Peak Influence 222 | . 22 170 222 Initial 66 | . . 8 66 Average 92 | . 5 77 147 Maximum Alert Level 1 | . . . 1 Low Security (%) 73 | 100 100 100 51 Level 1 26 | . . . 48 Level 2 . | . . . . Level 3 . | . . . . Level 4 . | . . . . Level 5 . | . . . . High Security . | . . . . Max Security . | . . . . Squads Dispatched 2 | . 1 . 1 Investigation . | . . . . Extermination . | . . . . Reinforcement 2 | . 1 . 1 Assault . | . . . . Garrison . | . . . . Intercept . | . . . . Searches Triggered . | . . . . Construction Impeded . | . . . . Haulers Reinforced . | . . . . Active Scanning Responses . | . . . . Cargo Convoy Interrupts . | . . . . Stealth | -11 -10 -10 -9 --------- Run | Yrd Mat Min Mat Distress Signals . | . . . . Communications Jammed . | . . . . Distress Signals . | . . . . Times Spotted 25 | . 2 7 16 Peak Tracking Total 7 | . 2 3 7 Tactical Retreats 1 | . . . 1 Traps | -11 -10 -10 -9 ------- Run | Yrd Mat Min Mat Traps Triggered 2 | . . . 2 Indirectly . | . . . . Trap Hack Attempts . | . . . . Triggered . | . . . . Disarmed . | . . . . Reprogrammed . | . . . . Reused . | . . . . Traps Extracted . | . . . . Installed . | . . . . Triggered . | . . . . Machines | -11 -10 -10 -9 ---------- Run | Yrd Mat Min Mat Machines Disabled 3 | . 1 . 2 Max in Single Turn 1 | . 1 . 1 Machines Repaired . | . . . . Machines Dismantled 1 | . 1 . . Machines Sabotaged . | . . . . Overloaded Fab Kills . | . . . . Hacking | -11 -10 -10 -9 --------- Run | Yrd Mat Min Mat Machines Accessed 4 | . 1 . 3 Terminals 3 | . 1 . 2 Fabricators . | . . . . Repair Stations 1 | . . . 1 Recycling Units . | . . . . Scanalyzers . | . . . . Garrison Access . | . . . . Total Hacks 13 | . 4 . 9 Successful 11 | . 4 . 7 Failed 2 | . . . 2 Catastrophic . | . . . . Database Lockouts . | . . . . Manual . | . . . . Terminals 10 | . 4 . 6 Fabricators . | . . . . Repair Stations 3 | . . . 3 Recycling Units . | . . . . Scanalyzers . | . . . . Garrison Access . | . . . . Terminal Hacks 9 | . 4 . 5 Record 5 | . 2 . 3 Alert Level 1 | . . . 1 Dispatch Records 1 | . . . 1 Recall Reinforcements 1 | . 1 . . Registered Components 1 | . 1 . . Fabricator Hacks . | . . . . Repair Station Hacks 2 | . . . 2 Scan Component 1 | . . . 1 Repair 1 | . . . 1 Recycling Unit Hacks . | . . . . Scanalyzer . | . . . . Garrison Access Hacks . | . . . . Unauthorized Hacks . | . . . . Terminals . | . . . . Fabricators . | . . . . Repair Stations . | . . . . Recycling Units . | . . . . Scanalyzers . | . . . . Garrison Access . | . . . . Data Cores Recovered . | . . . . Used . | . . . . Hacking Detections 4 | . 1 . 3 Full Trace Events 3 | . 1 . 2 Feedback Events . | . . . . Feedback Blocked . | . . . . Robot Schematics Acquired . | . . . . Robots Built . | . . . . Authchips . | . . . . Time . | . . . . Total Robot Build Rating . | . . . . Part Schematics Acquired . | . . . . Parts Built . | . . . . Authchips . | . . . . Time . | . . . . Total Part Build Rating . | . . . . Parts Repaired 1 | . . . 1 Time 26 | . . . 26 Parts Recycled . | . . . . Recycled Matter . | . . . . Retrieved Matter . | . . . . Retrieved Components . | . . . . Parts Scanalyzed . | . . . . Part Schematics Acquired . | . . . . Parts Damaged . | . . . . Bothacking | -11 -10 -10 -9 ------------ Run | Yrd Mat Min Mat Used RIF Installer . | . . . . Robots Hacked . | . . . . Non-combat . | . . . . Combat . | . . . . Robot Hacks Applied . | . . . . Relay Couplers Released . | . . . . Fabnet Peak Effective % . | . . . . Robots Rewired . | . . . . Allies Hacked . | . . . . Hacks Repelled . | . . . . Allies | -11 -10 -10 -9 -------- Run | Yrd Mat Min Mat Total Allies . | . . . . Largest Group . | . . . . Highest-Rated Group . | . . . . Highest-Rated Ally . | . . . . Total Orders . | . . . . Ally Attacks . | . . . . Total Damage . | . . . . Kills . | . . . . Allies Corrupted . | . . . . Allies Melted . | . . . . Intel | -11 -10 -10 -9 ------- Run | Yrd Mat Min Mat Robot Analysis Total . | . . . . Derelict Logs Recovered . | . . . . Drone Launches . | . . . . Drone Recoveries . | . . . . Exploration | -11 -10 -10 -9 ------------- Run | Yrd Mat Min Mat Turns Passed 1084 | 66 277 150 591 Spaces Moved 709 | 59 251 77 322 Core 2 | 2 . . . Treads . | . . . . Legs 390 | . . 68 322 Wheels 317 | 57 251 9 . Hover . | . . . . Flight . | . . . . Fastest Speed 50 | 50 90 90 120 Average Speed 114 | 85 90 116 139 Slowest Speed 190 | 90 90 120 190 Overloaded Moves . | . . . . Propulsion Burnouts . | . . . . Robots Hopped . | . . . . Cave-ins Triggered . | . . . . Exploration Rate (%) 17 | 4 34 16 17 Regions Visited 3 Branch Regions 1 Pre-discovered Areas . | . . . . Known Exits Taken . | . . . . Unknown Exits Taken 3 | 1 1 1 . Scrap Searched . | . . . . Spaces Dug . | . . . . Terrain Destroyed 13 | . . . 13 Melee . | . . . . Projectile . | . . . . AOE 13 | . . . 13 Terrain Rammed . | . . . . Walls Destroyed . | . . . . Machines Disabled . | . . . . Actions | -11 -10 -10 -9 --------- Run | Yrd Mat Min Mat Total 900 | 74 292 106 428 Wait 57 | . 17 . 40 Move 706 | 58 250 76 322 Hop . | . . . . Pick Up 36 | 10 10 3 13 Fast Attach . | . . . . Attach 16 | 6 1 2 7 Detach 1 | . . . 1 Swap 15 | . 4 3 8 Drop 18 | . 5 2 11 Fire 48 | . 2 20 26 Melee . | . . . . Ram . | . . . . Kick . | . . . . Crush . | . . . . Escape Stasis . | . . . . Rewire . | . . . . Trap . | . . . . Miscellaneous 3 | . 3 . . Route ------- -11/Scrapyard -10/Materials -10/Mines -9/Materials History --------- Turn | Location | Event 23 | -11/Scrapyard | Discovered new exit (range 15) 67 | -11/Scrapyard | Entered Materials 275 | -10/Materials | Discovered new exit (range 9) 329 | -10/Materials | Build established: Mutant 344 | -10/Materials | Entered Mines 402 | -10/Mines | Received a Rocket Launcher from a helpful Derelict 463 | -10/Mines | Discovered new exit (range 3) 494 | -10/Mines | Entered Materials 494 | -9/Materials | Evolved 2 slots: Power x1, Utility x1 846 | -9/Materials | Repaired Aluminum Leg 1046 | -9/Materials | Core integrity fell below 50% 1067 | -9/Materials | Core integrity fell below 20% 1085 | -9/Materials | Destroyed by Y-45 Defender with Heavy Assault Rifle Last Messages --------------- Acquired 40 matter. ALERT: Hostiles spotted, dispatching reinforcements to Terminal M008. S-10 Pest destroyed. S-10 Pest suffers critical hit (Burn). Terminal disabled. Power failure, Lgt. Ion Engine shutdown. Lgt. Ion Engine destroyed. Critical hit (Burn: +37). Beam Rifle destroyed. Power failure, Lgt. Ion Engine shutdown. G-34 Mercenary destroyed. Lgt. Ion Engine destroyed. Overheating: Energy bleed (-10). S-10 Pest destroyed. Overheating: System interference. Visual Processing Unit temporarily disabled. Acquired Lgt. Assault Rifle. Propulsion Shielding destroyed. Particle Cannon destroyed. Map ----- +----------------------------------------------------+ | ?????????????????????????????????????????????????? | | ?????????????????????????????????????????????????? | | ?????????????????????????????????????????????????? | | ?????????????????????????????????????????????????? | | ?????????????????????????????????????????????????? | | ?????????????????????????????????????????????????? | | ?????????????????????????????????????????????????? | | ?????????????????????????????????????????????????? | | ?????????????????????????????????????????????????? | | ?????????????????????????????????????????????????? | | ??????????????????????????? ??#??????????????????? | | ??????????????????????????? #??????????????????? | | ???????????????????????????k a#######????????????? | | ??????????????????????????? g ?????????????? | | ?????????????????????????? ??????????????? | | ?????????????????????????? ???????????????? | | ??????????? ???????????? ????????????????? | | ??????????? ???????????? ?????????????????? | | ??????????" #+########?? #?????????????????? | | ?????????"" # #?? #?????????????????? | | ?????????? # """ ! #?? #?????????????????? | | ?????????? # """ ### #?????????????????? | | ??????????# # """ + #?????????????????? | | ??????????# + [ # #?????????????????? | | ??????????# # = o Y #?????????????????? | | ??????????# # "T"%= #g@ #?????????????????? | | ??????????# # "" [* #% #?????????????????? | | ??????????# #==%%[ Y #?????????????????? | | ??????????# ##+###############?????????????????? | | ??????????# #???????????????????????????????? | | ??? = / #???????????????????????????????? | | ??#### #####+###/#???????????????????????????????? | | ????????# #???????????????????????????????? | | ######??# ##??????????????????????????????? | | # #??# """ #????????????###########???????? | | # #??# """ ###########???# """T""" #???????? | | # #??# """ # #???# #???????? | | # #### """ # #???# #???????? | | # + ## """ # """ #???# #???????? | | # # ## !!* # """"" ]#???# """ """ #???????? | | # # ##![ % # """"" #???# """ """ #???????? | | # # ####+###### " #???# """ """ #???????? | | #! # #??#=#???# #???# #???????? | | ###### ##?#=#???## #???#####+#####???????? | | [ # ###=#########+############ ########??? | | + #??? | | # ###+######## #??? | | " ##### #?# # #??? | | R" #???# * #?####+#+########## ########??? | | "" #???# #??# #????#######?????????? | +----------------------------------------------------+ Best States ------------- Heat Dissipation 28 Energy Generation 17 Energy Capacity 290 Matter Stores 300 Matter Capacity 300 Sight Range 18 Terrain Scan Density 10 Propulsion Shielding 33 Utility Shielding 33 Evasion (%) 55 Item Schematics ----------------- None Robot Schematics ------------------ None Fabricated ------------ Nothing Alien Tech Used ----------------- None Achievements -------------- GoHome() Challenges ------------ None Game ------ Seed TitaniumDimensionalReplica Manual? 0 Play Time 00:37:04 Cumulative 5.2 hours Start 2024.10.19 @ 18:23:59 End 2024.10.19 @ 19:01:23 Sessions 1 Manual Loads 0 Difficulty Rogue Special Mode None Game No. 8 Rogue 8 Adventurer 0 Explorer 0 Win Type - Total 0 Types 0/0/0/0/0/0/0/0/0 Lore% 1 Gallery% 6 Achievement% 6 Wizard Run 0 Options --------- Layout 1 ASCII 0 Keyboard 1 Movement Arrows Keybinds 0 Fullscreen 1 Font 24/Smallcaps Map View 50x35 Zoom Use 0% Tactical HUD 0 Map Filters NONE Filters NONE Steam 1 RUN: e58f7058-91a5-4b19-bc31-28debd1e31d3